fUST/lending_fUST_20250830
["ID","MTS","AMOUNT","RATE_DAILY","PERIOD"]
[382266099,1756554658479,-480.0,0.00019726,2]
[382266100,1756554658488,-488.0275636,0.00019726,2]
[382266101,1756554658498,-681.87,0.00019726,2]
[382266102,1756554658507,-480.0,0.00019726,2]
[382266103,1756554658521,-480.0,0.00019726,2]
[382266104,1756554658530,-480.0,0.00019726,2]
[382266105,1756554658539,-480.0,0.00019726,2]
[382266106,1756554658549,-480.0,0.00019726,2]
[382266107,1756554658558,-480.0,0.00019726,2]
[382266108,1756554658567,-480.0,0.00019726,2]
[382266109,1756554658577,-565.39429205,0.00019726,2]
[382266110,1756554658586,-500.49,0.00019726,2]
[382266111,1756554658596,-480.0,0.00019726,2]
[382266112,1756554658605,-480.0,0.00019726,2]
[382266113,1756554658614,-525.79129798,0.00019726,2]
[382266114,1756554658623,-480.0,0.00019726,2]
[382266115,1756554658632,-480.0,0.00019726,2]
[382266116,1756554658642,-480.0,0.00019726,2]
[382266117,1756554658651,-480.0,0.00019726,2]
[382266118,1756554658660,-639.53,0.00019726,2]
[382266119,1756554658670,-187.6455495,0.00019726,2]
[382266120,1756554658679,-480.0,0.00019726,2]
[382266121,1756554658808,-480.0,0.00019726,2]
[382266122,1756554658819,-480.0,0.00019726,2]
[382266123,1756554658830,-480.0,0.00019726,2]
[382266124,1756554658839,-633.69,0.00019726,2]
[382266125,1756554658849,-480.0,0.00019726,2]
[382266126,1756554658858,-480.0,0.00019726,2]
[382266127,1756554658868,-480.0,0.00019726,2]
[382266128,1756554658877,-541.1,0.00019726,2]
[382266129,1756554658887,-1228.22,0.00019726,2]
[382266130,1756554658896,-480.0,0.00019726,2]
[382266131,1756554658906,-480.0,0.00019726,2]
[382266132,1756554658916,-480.0,0.00019726,2]
[382266133,1756554658926,-1127.92,0.00019726,2]
[382266134,1756554658935,-480.0,0.00019726,2]
[382266135,1756554658945,-480.0,0.00019726,2]
[382266136,1756554658954,-480.0,0.00019726,2]
[382266137,1756554658965,-821.44,0.00019726,2]
[382266138,1756554658976,-799.92,0.00019726,2]
[382266139,1756554658988,-480.0,0.00019726,2]
[382266140,1756554658998,-480.0,0.00019726,2]
[382266141,1756554659008,-1449.1,0.00019726,2]
[382266142,1756554659018,-480.0,0.00019726,2]
[382266143,1756554659027,-480.0,0.00019726,2]
[382266144,1756554659036,-480.0,0.00019726,2]
[382266145,1756554659047,-480.0,0.00019726,2]
[382266146,1756554659056,-480.0,0.00019726,2]
[382266147,1756554659066,-883.21,0.00019726,2]
[382266148,1756554659075,-480.0,0.00019726,2]
[382266149,1756554659085,-480.0,0.00019726,2]
[382266150,1756554659094,-480.0,0.00019726,2]
[382266151,1756554659103,-480.0,0.00019726,2]
[382266152,1756554659113,-480.0,0.00019726,2]
[382266153,1756554659122,-480.0,0.00019726,2]
[382266154,1756554659131,-1387.97,0.00019726,2]
[382266155,1756554659141,-258.52482,0.00019726,2]
[382266156,1756554659151,-480.0,0.00019726,2]
[382266157,1756554659160,-480.0,0.00019726,2]
[382266158,1756554659169,-584.59,0.00019726,2]
[382266159,1756554659179,-763.31,0.00019726,2]
[382266160,1756554659189,-480.0,0.00019726,2]
[382266161,1756554659199,-480.0,0.00019726,2]
[382266162,1756554659208,-854.01,0.00019726,2]
[382266163,1756554659218,-480.0,0.00019726,2]
[382266164,1756554659227,-480.0,0.00019726,2]
[382266165,1756554659237,-480.0,0.00019726,2]
[382266166,1756554659247,-483.08562601,0.00019726,2]
[382266167,1756554659256,-480.0,0.00019726,2]
[382266168,1756554659266,-481.2,0.00019726,2]
[382266169,1756554659276,-480.0,0.00019726,2]
[382266170,1756554659285,-532.67,0.00019726,2]
[382266171,1756554659294,-480.0,0.00019726,2]
[382266172,1756554659303,-608.42,0.00019726,2]
[382266173,1756554659312,-480.0,0.00019726,2]
[382266174,1756554659322,-480.0,0.00019726,2]
[382266175,1756554659332,-480.0,0.00019726,2]
[382266176,1756554659342,-1196.51,0.00019726,2]
[382266177,1756554659351,-480.0,0.00019726,2]
[382266178,1756554659362,-576.06,0.00019726,2]
[382266179,1756554659371,-733.06,0.00019726,2]
[382266180,1756554659381,-480.0,0.00019726,2]
[382266181,1756554659391,-480.0,0.00019726,2]
[382266182,1756554659401,-555.82,0.00019726,2]
[382266183,1756554659410,-480.0,0.00019726,2]
[382266184,1756554659420,-480.0,0.00019726,2]
[382266185,1756554659430,-1643.31,0.00019726,2]
[382266186,1756554659440,-480.0,0.00019726,2]
[382266187,1756554659449,-480.0,0.00019726,2]
[382266188,1756554659458,-1001.89,0.00019726,2]
[382266189,1756554659468,-480.0,0.00019726,2]
[382266190,1756554659477,-676.91,0.00019726,2]
[382266191,1756554659487,-480.0,0.00019726,2]
[382266192,1756554659496,-480.0,0.00019726,2]
[382266193,1756554659506,-480.0,0.00019726,2]
[382266194,1756554659521,-480.0,0.00019726,2]
[382266195,1756554659531,-555.47,0.00019726,2]
[382266196,1756554659541,-480.0,0.00019726,2]
[382266197,1756554659550,-533.45,0.00019726,2]
[382266198,1756554659560,-1030.35,0.00019726,2]
[382266199,1756554659569,-847.06,0.00019726,2]
[382266200,1756554659578,-480.0,0.00019726,2]
[382266201,1756554659590,-389.86305416,0.00019726,2]
[382266202,1756554659599,-1269.01,0.00019726,2]
[382266203,1756554659607,-1445.33,0.00019726,2]
[382266204,1756554659616,-1235.66,0.00019726,2]
[382266205,1756554659625,-480.0,0.00019726,2]
[382266206,1756554659635,-480.0,0.00019726,2]
[382266207,1756554659643,-299.49832394,0.00019726,2]
[382266208,1756554659653,-480.0,0.00019726,2]
[382266209,1756554659662,-480.0,0.00019726,2]
[382266210,1756554659672,-480.0,0.00019726,2]
[382266211,1756554659682,-1402.41,0.00019726,2]
[382266212,1756554659692,-1605.1,0.00019726,2]
[382266213,1756554659701,-1181.98,0.00019726,2]
[382266214,1756554659710,-480.0,0.00019726,2]
[382266215,1756554659720,-480.0,0.00019726,2]
[382266216,1756554659729,-480.0,0.00019726,2]
[382266217,1756554659739,-595.86,0.00019726,2]
[382266218,1756554659748,-480.0,0.00019726,2]
[382266219,1756554659757,-480.0,0.00019726,2]
[382266220,1756554659766,-485.13,0.00019726,2]
[382266221,1756554659775,-480.0,0.00019726,2]
[382266222,1756554659784,-1481.29,0.00019726,2]
[382266223,1756554659793,-659.85,0.00019726,2]
[382266224,1756554659802,-480.0,0.00019726,2]
[382266225,1756554659811,-480.0,0.00019726,2]
[382266226,1756554659820,-480.0,0.00019726,2]
[382266227,1756554659830,-1235.92,0.00019726,2]
[382266228,1756554659839,-480.0,0.00019726,2]
[382266229,1756554659847,-480.0,0.00019726,2]
[382266230,1756554659856,-1456.52,0.00019726,2]
[382266231,1756554659866,-480.0,0.00019726,2]
[382266232,1756554659875,-502.23,0.00019726,2]
[382266233,1756554659884,-480.0,0.00019726,2]
[382266234,1756554659894,-480.0,0.00019726,2]
[382266235,1756554659903,-480.0,0.00019726,2]
[382266236,1756554659912,-545.82,0.00019726,2]
[382266237,1756554659922,-480.0,0.00019726,2]
[382266238,1756554659930,-480.0,0.00019726,2]
[382266239,1756554659939,-465.09751842,0.00019726,2]
[382266240,1756554659948,-542.98,0.00019726,2]
[382266241,1756554659958,-480.0,0.00019726,2]
[382266242,1756554659967,-518.51,0.00019726,2]
[382266243,1756554659976,-559.98,0.00019726,2]
[382266244,1756554659985,-480.0,0.00019726,2]
[382266245,1756554659994,-500.42,0.00019726,2]
[382266246,1756554660003,-480.0,0.00019726,2]
[382266247,1756554660013,-480.0,0.00019726,2]
[382266248,1756554660022,-631.66,0.00019726,2]
[382266249,1756554660031,-544.04,0.00019726,2]
[382266250,1756554660041,-480.0,0.00019726,2]
[382266251,1756554660050,-480.0,0.00019726,2]
[382266252,1756554660060,-880.7,0.00019726,2]
[382266253,1756554660069,-480.0,0.00019726,2]
[382266254,1756554660079,-480.0,0.00019726,2]
[382266255,1756554660088,-480.0,0.00019726,2]
[382266256,1756554660098,-480.0,0.00019726,2]
[382266257,1756554660107,-480.0,0.00019726,2]
[382266258,1756554660116,-480.0,0.00019726,2]
[382266259,1756554660126,-480.0,0.00019726,2]
[382266260,1756554660135,-480.0,0.00019726,2]
[382266261,1756554660146,-480.0,0.00019726,2]
[382266262,1756554660156,-480.0,0.00019726,2]
[382266263,1756554660166,-708.46,0.00019726,2]
[382266264,1756554660175,-480.0,0.00019726,2]
[382266265,1756554660185,-4415.64,0.00019726,2]
[382266266,1756554660194,-568.33,0.00019726,2]
[382266267,1756554660204,-480.0,0.00019726,2]
[382266268,1756554660213,-640.29,0.00019726,2]
[382266269,1756554660223,-1592.61,0.00019726,2]
[382266270,1756554660233,-480.0,0.00019726,2]
[382266271,1756554660243,-480.0,0.00019726,2]
[382266272,1756554660253,-480.0,0.00019726,2]
[382266273,1756554660262,-480.0,0.00019726,2]
[382266274,1756554660272,-1324.65,0.00019726,2]
[382266275,1756554660282,-684.64,0.00019726,2]
[382266276,1756554660292,-480.0,0.00019726,2]
[382266277,1756554660302,-480.0,0.00019726,2]
[382266278,1756554660312,-551.86,0.00019726,2]
[382266279,1756554660323,-545.77,0.00019726,2]
[382266280,1756554660333,-480.0,0.00019726,2]
[382266281,1756554660343,-155.37708343,0.00019726,2]
[382266282,1756554660353,-480.0,0.00019726,2]
[382266283,1756554660362,-3033.66,0.00019726,2]
[382266284,1756554660372,-250.17293144,0.00019726,2]
[382266285,1756554660382,-1724.66,0.00019726,2]
[382266286,1756554660392,-480.0,0.00019726,2]
[382266287,1756554660402,-1635.02,0.00019726,2]
[382266288,1756554660412,-480.0,0.00019726,2]
[382266289,1756554660422,-480.0,0.00019726,2]
[382266290,1756554660431,-480.0,0.00019726,2]
[382266291,1756554660441,-480.0,0.00019726,2]
[382266292,1756554660450,-717.16,0.00019726,2]
[382266293,1756554660459,-480.0,0.00019726,2]
[382266294,1756554660469,-476.07858938,0.00019726,2]
[382266295,1756554660477,-480.0,0.00019726,2]
[382266296,1756554660487,-637.14,0.00019726,2]
[382266297,1756554660497,-480.0,0.00019726,2]
[382266298,1756554660506,-480.0,0.00019726,2]
[382266299,1756554660519,-480.0,0.00019726,2]
[382266300,1756554660528,-480.0,0.00019726,2]
[382266301,1756554660538,-480.0,0.00019726,2]
[382266302,1756554660547,-480.0,0.00019726,2]
[382266303,1756554660557,-480.0,0.00019726,2]
[382266304,1756554660567,-480.0,0.00019726,2]
[382266305,1756554660577,-500.0,0.00019726,2]
[382266306,1756554660588,-480.0,0.00019726,2]
[382266307,1756554660598,-480.0,0.00019726,2]
[382266308,1756554660608,-745.81,0.00019726,2]
[382266309,1756554660617,-480.0,0.00019726,2]
[382266310,1756554660628,-480.0,0.00019726,2]
[382266311,1756554660638,-480.0,0.00019726,2]
[382266312,1756554660648,-480.0,0.00019726,2]
[382266313,1756554660657,-480.0,0.00019726,2]
[382266314,1756554660666,-480.0,0.00019726,2]
[382266315,1756554660796,-1328.75,0.00019726,2]
[382266316,1756554660806,-480.0,0.00019726,2]
[382266317,1756554660816,-480.0,0.00019726,2]
[382266318,1756554660825,-480.0,0.00019726,2]
[382266319,1756554660834,-1205.95,0.00019726,2]
[382266320,1756554660844,-208.32049847,0.00019726,2]
[382266321,1756554660853,-587.11,0.00019726,2]
[382266322,1756554660863,-480.0,0.00019726,2]
[382266323,1756554660873,-480.0,0.00019726,2]
[382266324,1756554660882,-546.42,0.00019726,2]
[382266325,1756554660892,-1123.89,0.00019726,2]
[382266326,1756554660900,-480.0,0.00019726,2]
[382266327,1756554660908,-1353.76,0.00019726,2]
[382266328,1756554660916,-480.0,0.00019726,2]
[382266329,1756554660924,-572.91,0.00019726,2]
[382266330,1756554660931,-480.0,0.00019726,2]
[382266331,1756554660939,-1443.78,0.00019726,2]
[382266332,1756554660947,-1240.54,0.00019726,2]
[382266333,1756554660957,-1715.76,0.00019726,2]
[382266334,1756554660967,-480.0,0.00019726,2]
[382266335,1756554660976,-499.86,0.00019726,2]
[382266336,1756554660986,-480.0,0.00019726,2]
[382266337,1756554660995,-480.0,0.00019726,2]
[382266338,1756554661005,-480.0,0.00019726,2]
[382266339,1756554661015,-682.06,0.00019726,2]
[382266340,1756554661024,-480.0,0.00019726,2]
[382266341,1756554661034,-779.39,0.00019726,2]
[382266342,1756554661043,-480.0,0.00019726,2]
[382266343,1756554661054,-1601.41,0.00019726,2]
[382266344,1756554661063,-480.0,0.00019726,2]
[382266345,1756554661073,-518.82,0.00019726,2]
[382266346,1756554661083,-480.0,0.00019726,2]
[382266347,1756554661093,-480.0,0.00019726,2]
[382266348,1756554661102,-480.0,0.00019726,2]
[382266349,1756554661112,-1315.89,0.00019726,2]
[382266350,1756554661122,-1125.36,0.00019726,2]
[382266351,1756554661132,-480.0,0.00019726,2]
[382266352,1756554661143,-480.0,0.00019726,2]
[382266353,1756554661154,-1240.82,0.00019726,2]
[382266354,1756554661163,-1103.96,0.00019726,2]
[382266355,1756554661172,-480.0,0.00019726,2]
[382266356,1756554661182,-1231.93,0.00019726,2]
[382266357,1756554661191,-492.32,0.00019726,2]
[382266358,1756554661201,-1330.44,0.00019726,2]
[382266359,1756554661210,-1367.46,0.00019726,2]
[382266360,1756554661219,-480.0,0.00019726,2]
[382266361,1756554661228,-480.0,0.00019726,2]
[382266362,1756554661238,-1415.01,0.00019726,2]
[382266363,1756554661247,-480.0,0.00019726,2]
[382266364,1756554661257,-480.0,0.00019726,2]
[382266365,1756554661266,-547.99,0.00019726,2]
[382266366,1756554661276,-480.0,0.00019726,2]
[382266367,1756554661285,-695.69,0.00019726,2]
[382266368,1756554661295,-3508.38,0.00019726,2]
[382266369,1756554661304,-481.81,0.00019726,2]
[382266370,1756554661314,-1378.87,0.00019726,2]
[382266371,1756554661323,-731.81,0.00019726,2]
[382266372,1756554661333,-1117.44,0.00019726,2]
[382266373,1756554661342,-480.0,0.00019726,2]
[382266374,1756554661351,-573.02,0.00019726,2]
[382266375,1756554661361,-746.18,0.00019726,2]
[382266376,1756554661371,-480.0,0.00019726,2]
[382266377,1756554661380,-480.0,0.00019726,2]
[382266378,1756554661389,-650.6,0.00019726,2]
[382266379,1756554661398,-947.62,0.00019726,2]
[382266380,1756554661408,-480.0,0.00019726,2]
[382266381,1756554661417,-480.0,0.00019726,2]
[382266382,1756554661426,-4729.12,0.00019726,2]
[382266383,1756554661437,-1324.83,0.00019726,2]
[382266384,1756554661447,-1169.02,0.00019726,2]
[382266385,1756554661456,-480.0,0.00019726,2]
[382266386,1756554661466,-1073.34,0.00019726,2]
[382266387,1756554661475,-577.07,0.00019726,2]
[382266388,1756554661484,-480.0,0.00019726,2]
[382266389,1756554661494,-1376.25,0.00019726,2]
[382266390,1756554661504,-480.0,0.00019726,2]
[382266391,1756554661516,-480.0,0.00019726,2]
[382266392,1756554661526,-480.0,0.00019726,2]
[382266393,1756554661535,-602.78,0.00019726,2]
[382266394,1756554661545,-1478.31,0.00019726,2]
[382266395,1756554661554,-1511.74,0.00019726,2]
[382266396,1756554661563,-480.0,0.00019726,2]
[382266397,1756554661574,-1484.56,0.00019726,2]
[382266398,1756554661584,-405.78991659,0.00019726,2]
[382266399,1756554661594,-480.0,0.00019726,2]
[382266400,1756554661603,-480.0,0.00019726,2]
[382266401,1756554661613,-480.0,0.00019726,2]
[382266402,1756554661623,-480.0,0.00019726,2]
[382266403,1756554661633,-490.27,0.00019726,2]
[382266404,1756554661642,-480.0,0.00019726,2]
[382266405,1756554661651,-480.0,0.00019726,2]
[382266406,1756554661661,-480.0,0.00019726,2]
[382266407,1756554661670,-684.95,0.00019726,2]
[382266408,1756554661679,-480.0,0.00019726,2]
[382266409,1756554661690,-480.0,0.00019726,2]
[382266410,1756554661699,-1292.41,0.00019726,2]
[382266411,1756554661709,-480.0,0.00019726,2]
[382266412,1756554661719,-480.0,0.00019726,2]
[382266413,1756554661728,-480.0,0.00019726,2]
[382266414,1756554661737,-480.0,0.00019726,2]
[382266415,1756554661747,-1531.53,0.00019726,2]
[382266416,1756554661756,-480.0,0.00019726,2]
[382266417,1756554661765,-568.56,0.00019726,2]
[382266418,1756554661775,-480.0,0.00019726,2]
[382266419,1756554661786,-784.3,0.00019726,2]
[382266420,1756554661796,-480.0,0.00019726,2]
[382266421,1756554661807,-1696.26,0.00019726,2]
[382266422,1756554661817,-470.59346364,0.00019726,2]
[382266423,1756554661827,-1296.21,0.00019726,2]
[382266424,1756554661839,-480.0,0.00019726,2]
[382266425,1756554661849,-480.0,0.00019726,2]
[382266426,1756554661858,-480.0,0.00019726,2]
[382266427,1756554661867,-768.51,0.00019726,2]
[382266428,1756554661877,-601.63,0.00019726,2]
[382266429,1756554661886,-772.61,0.00019726,2]
[382266430,1756554661897,-266.39182052,0.00019726,2]
[382266431,1756554661906,-1333.3,0.00019726,2]
[382266432,1756554661915,-1941.5,0.00019726,2]
[382266433,1756554661925,-480.0,0.00019726,2]
[382266434,1756554661934,-480.0,0.00019726,2]
[382266435,1756554661944,-1448.86,0.00019726,2]
[382266436,1756554661954,-480.0,0.00019726,2]
[382266437,1756554661963,-480.0,0.00019726,2]
[382266438,1756554661972,-1746.72,0.00019726,2]
[382266439,1756554661981,-864.37,0.00019726,2]
[382266440,1756554661991,-1566.73,0.00019726,2]
[382266441,1756554662000,-1231.58,0.00019726,2]
[382266442,1756554662009,-979.6,0.00019726,2]
[382266443,1756554662020,-518.03,0.00019726,2]
[382266444,1756554662029,-480.0,0.00019726,2]
[382266445,1756554662038,-3044.12,0.00019726,2]
[382266446,1756554662047,-480.0,0.00019726,2]
[382266447,1756554662058,-480.0,0.00019726,2]
[382266448,1756554662067,-480.0,0.00019726,2]
[382266449,1756554662078,-618.11,0.00019726,2]
[382266450,1756554662087,-480.0,0.00019726,2]
[382266451,1756554662097,-868.46,0.00019726,2]
[382266452,1756554662106,-1754.86,0.00019726,2]
[382266453,1756554662116,-480.0,0.00019726,2]
[382266454,1756554662125,-1328.75,0.00019726,2]
[382266455,1756554662135,-1144.39,0.00019726,2]
[382266456,1756554662144,-1005.04484124,0.00019726,2]
[382266457,1756554662153,-623.63,0.00019726,2]
[382266458,1756554662163,-707.49,0.00019726,2]
[382266459,1756554662172,-483.21012792,0.00019726,2]
[382266460,1756554662182,-722.09,0.00019726,2]
[382266461,1756554662191,-2002.53,0.00019726,2]
[382266462,1756554662200,-948.08,0.00019726,2]
[382266463,1756554662210,-480.0,0.00019726,2]
[382266464,1756554662219,-5464.59,0.00019726,2]
[382266465,1756554662228,-490.57,0.00019726,2]
[382266466,1756554662238,-1231.24,0.00019726,2]
[382266467,1756554662247,-480.0,0.00019726,2]
[382266468,1756554662257,-480.0,0.00019726,2]
[382266469,1756554662266,-480.0,0.00019726,2]
[382266470,1756554662276,-480.0,0.00019726,2]
[382266471,1756554662286,-480.0,0.00019726,2]
[382266472,1756554662296,-538.02,0.00019726,2]
[382266473,1756554662305,-7664.88,0.00019726,2]
[382266474,1756554662315,-480.0,0.00019726,2]
[382266475,1756554662324,-1701.43,0.00019726,2]
[382266476,1756554662334,-480.0,0.00019726,2]
[382266477,1756554662343,-480.0,0.00019726,2]
[382266478,1756554662352,-812.46,0.00019726,2]
[382266479,1756554662362,-480.0,0.00019726,2]
[382266480,1756554662371,-480.0,0.00019726,2]
[382266481,1756554662380,-2172.84,0.00019726,2]
[382266482,1756554662389,-516.53,0.00019726,2]
[382266483,1756554662398,-1200.95,0.00019726,2]
[382266484,1756554662408,-1366.29,0.00019726,2]
[382266485,1756554662417,-1096.99,0.00019726,2]
[382266486,1756554662426,-339.2082799,0.00019726,2]
[382266487,1756554662437,-574.17,0.00019726,2]
[382266488,1756554662447,-480.0,0.00019726,2]
[382266489,1756554662455,-5268.55,0.00019726,2]
[382266490,1756554662465,-597.42,0.00019726,2]
[382266491,1756554662474,-645.48,0.00019726,2]
[382266492,1756554662484,-1950.13,0.00019726,2]
[382266493,1756554662608,-480.0,0.00019726,2]
[382266494,1756554662618,-480.0,0.00019726,2]
[382266495,1756554662628,-480.0,0.00019726,2]
[382266496,1756554662638,-480.0,0.00019726,2]
[382266497,1756554662648,-267.25014861,0.00019726,2]
[382266498,1756554662658,-1368.69,0.00019726,2]
[382266499,1756554662667,-655.58,0.00019726,2]
[382266500,1756554662676,-480.0,0.00019726,2]
[382266501,1756554662687,-480.0,0.00019726,2]
[382266502,1756554662696,-480.0,0.00019726,2]
[382266503,1756554662706,-1535.1,0.00019726,2]
[382266504,1756554662715,-480.0,0.00019726,2]
[382266505,1756554662725,-480.0,0.00019726,2]
[382266506,1756554662734,-1194.41,0.00019726,2]
[382266507,1756554662743,-973.06,0.00019726,2]
[382266508,1756554662752,-480.0,0.00019726,2]
[382266509,1756554662762,-495.56,0.00019726,2]
[382266510,1756554662772,-480.0,0.00019726,2]
[382266511,1756554662782,-288.83799944,0.00019726,2]
[382266512,1756554662791,-480.0,0.00019726,2]
[382266513,1756554662801,-417.00110443,0.00019726,2]
[382266514,1756554662812,-480.0,0.00019726,2]
[382266515,1756554662822,-480.0,0.00019726,2]
[382266516,1756554662832,-637.85,0.00019726,2]
[382266517,1756554662841,-480.0,0.00019726,2]
[382266518,1756554662851,-480.0,0.00019726,2]
[382266519,1756554662861,-1208.65,0.00019726,2]
[382266520,1756554662871,-1514.2,0.00019726,2]
[382266521,1756554662880,-610.93,0.00019726,2]
[382266522,1756554662889,-480.0,0.00019726,2]
[382266523,1756554662899,-480.0,0.00019726,2]
[382266524,1756554662909,-480.0,0.00019726,2]
[382266525,1756554662919,-480.0,0.00019726,2]
[382266526,1756554662928,-480.0,0.00019726,2]
[382266527,1756554662937,-1407.43,0.00019726,2]
[382266528,1756554662946,-607.66,0.00019726,2]
[382266529,1756554662955,-480.0,0.00019726,2]
[382266530,1756554662965,-958.48,0.00019726,2]
[382266531,1756554662974,-697.73,0.00019726,2]
[382266532,1756554662984,-528.03,0.00019726,2]
[382266533,1756554662994,-467.83128519,0.00019726,2]
[382266534,1756554663004,-2627.8,0.00019726,2]
[382266535,1756554663014,-233.35357087,0.00019726,2]
[382266536,1756554663024,-685.77,0.00019726,2]
[382266537,1756554663034,-480.0,0.00019726,2]
[382266538,1756554663043,-1435.26,0.00019726,2]
[382266539,1756554663052,-480.0,0.00019726,2]
[382266540,1756554663062,-480.0,0.00019726,2]
[382266541,1756554663071,-480.0,0.00019726,2]
[382266542,1756554663080,-1398.07,0.00019726,2]
[382266543,1756554663090,-6540.58,0.00019726,2]
[382266544,1756554663099,-480.0,0.00019726,2]
[382266545,1756554663109,-480.0,0.00019726,2]
[382266546,1756554663121,-5987.72,0.00019726,2]
[382266547,1756554663141,-480.0,0.00019726,2]
[382266548,1756554663154,-1397.41,0.00019726,2]
[382266549,1756554663164,-643.71,0.00019726,2]
[382266550,1756554663174,-1169.19,0.00019726,2]
[382266551,1756554663184,-480.0,0.00019726,2]
[382266552,1756554663194,-497.58406816,0.00019726,2]
[382266553,1756554663204,-2012.92,0.00019726,2]
[382266554,1756554663214,-2087.53,0.00019726,2]
[382266555,1756554663223,-2754.92,0.00019726,2]
[382266556,1756554663233,-612.19,0.00019726,2]
[382266557,1756554663243,-431.89485448,0.00019726,2]
[382266558,1756554663253,-1343.31,0.00019726,2]
[382266559,1756554663263,-480.0,0.00019726,2]
[382266560,1756554663273,-1476.81,0.00019726,2]
[382266561,1756554663283,-556.61,0.00019726,2]
[382266562,1756554663293,-1419.22,0.00019726,2]
[382266563,1756554663303,-480.0,0.00019726,2]
[382266564,1756554663313,-480.0,0.00019726,2]
[382266565,1756554663322,-659.64,0.00019726,2]
[382266566,1756554663331,-480.0,0.00019726,2]
[382266567,1756554663340,-348.83441339,0.00019726,2]
[382266568,1756554663350,-480.0,0.00019726,2]
[382266569,1756554663359,-480.0,0.00019726,2]
[382266570,1756554663370,-480.0,0.00019726,2]
[382266571,1756554663379,-611.97,0.00019726,2]
[382266572,1756554663389,-490.20510894,0.00019733,2]
[382266573,1756554663399,-800.0,0.00019756,2]
[382266574,1756554663409,-800.0,0.00019765,2]
[382266575,1756554663419,-329.306,0.00019769,2]
[382266576,1756554663435,-188.48599983,0.0001977,2]
[382266577,1756554663455,-500.0,0.00019773,2]
[382266578,1756554663472,-500.0,0.00019773,2]
[382266579,1756554663491,-500.0,0.00019773,2]
[382266580,1756554663513,-500.0,0.00019773,2]
[382266581,1756554663531,-500.0,0.00019773,2]
[382266582,1756554663550,-500.0,0.00019773,2]
[382266583,1756554663566,-500.0,0.00019773,2]
[382266584,1756554663584,-500.3473098,0.00019773,2]
[382266585,1756554663605,-168.0,0.00019778,2]
[382266586,1756554663622,-800.0,0.0001981,2]
[382266587,1756554663638,-242.4410132,0.00019817,2]
[382266588,1756554663655,-800.0,0.00019848,2]
[382266589,1756554663672,-203.68513971,0.00019849,2]
[382266590,1756554663687,-408.687633,0.00019863,2]
[382266591,1756554663702,-500.0,0.00019867,2]
[382266592,1756554663718,-1500.0,0.00019868,2]
[382266593,1756554663734,-11950.64524594,0.000199,2]
[382266594,1756554663749,-2405.58810382,0.000199,2]
[382266595,1756554663765,-168.0,0.00019916,2]
[382266596,1756554663781,-1766.0,0.00019959,2]
[382266597,1756554663797,-1766.0,0.00019959,2]
[382266598,1756554663812,-1184.5094268,0.00019959,2]